[Event "*** SCC Grand Prix: Titled Tuesday Blitz"]
[Site "Chess.com"]
[Date "2020.09.29"]
[Round "4"]
[White "nocnypako"]
[Black "AnkitGajwa"]
[Result "0-1"]
[WhiteElo "2561"]
[BlackElo "2429"]
[TimeControl "180+1"]
[EndTime "10:39:25 PDT"]
[Termination "AnkitGajwa won on time"]

1. d4 {[%clk 0:03:00.9]} 1... Nf6 {[%clk 0:02:52.5]} 2. c4 {[%clk 0:02:42.4]}
2... e6 {[%clk 0:02:43.8]} 3. Nc3 {[%clk 0:02:14.5]} 3... Bb4 {[%clk 0:02:38.3]}
4. e3 {[%clk 0:02:11.4]} 4... O-O {[%clk 0:02:29]} 5. Ne2 {[%clk 0:02:10.3]}
5... d5 {[%clk 0:02:18.9]} 6. a3 {[%clk 0:02:10.3]} 6... Be7 {[%clk 0:02:16.2]}
7. cxd5 {[%clk 0:02:10.4]} 7... exd5 {[%clk 0:02:16.1]} 8. Nf4 {[%clk
0:02:10.9]} 8... c6 {[%clk 0:02:14.1]} 9. Bd3 {[%clk 0:02:09.9]} 9... Bd6 {[%clk
0:02:13.9]} 10. O-O {[%clk 0:02:10.1]} 10... Re8 {[%clk 0:02:13.1]} 11. f3
{[%clk 0:02:09.8]} 11... Nbd7 {[%clk 0:02:12.8]} 12. Bc2 {[%clk 0:02:09.7]}
12... Nf8 {[%clk 0:02:12.3]} 13. e4 {[%clk 0:02:06.9]} 13... dxe4 {[%clk
0:01:49.9]} 14. fxe4 {[%clk 0:02:07.8]} 14... Bc7 {[%clk 0:01:50]} 15. e5 {[%clk
0:02:04.7]} 15... Ng4 {[%clk 0:01:49.9]} 16. h3 {[%clk 0:01:58.1]} 16... Bb6
{[%clk 0:01:49.7]} 17. hxg4 {[%clk 0:01:52.8]} 17... Bxd4+ {[%clk 0:01:49.3]}
18. Kh1 {[%clk 0:01:53]} 18... Qh4+ {[%clk 0:01:44.8]} 19. Nh3 {[%clk
0:01:52.9]} 19... Bxe5 {[%clk 0:01:44.2]} 20. Bg5 {[%clk 0:01:31.1]} 20... Qg3
{[%clk 0:01:40.6]} 21. Bf4 {[%clk 0:01:30.8]} 21... Bxf4 {[%clk 0:01:39]} 22.
Rxf4 {[%clk 0:01:31.6]} 22... h5 {[%clk 0:01:32.6]} 23. Ne4 {[%clk 0:01:25.4]}
23... Qe3 {[%clk 0:01:27.6]} 24. Qd3 {[%clk 0:00:46.1]} 24... Qxd3 {[%clk
0:01:23.2]} 25. Bxd3 {[%clk 0:00:47]} 25... hxg4 {[%clk 0:01:14.8]} 26. Nhg5
{[%clk 0:00:46.7]} 26... f6 {[%clk 0:01:08]} 27. Bc4+ {[%clk 0:00:37.9]} 27...
Kh8 {[%clk 0:01:07.8]} 28. Nf7+ {[%clk 0:00:20.1]} 28... Kh7 {[%clk 0:01:07.7]}
29. Ned6 {[%clk 0:00:20.7]} 29... Re3 {[%clk 0:00:58.9]} 30. Nxc8 {[%clk
0:00:20.8]} 30... Rxc8 {[%clk 0:00:58.4]} 31. Rxg4 {[%clk 0:00:21.4]} 31... g6
{[%clk 0:00:51.7]} 32. Nd6 {[%clk 0:00:18.5]} 32... Rd8 {[%clk 0:00:45.1]} 33.
Nxb7 {[%clk 0:00:18.5]} 33... Rd2 {[%clk 0:00:44.9]} 34. b4 {[%clk 0:00:17.4]}
34... f5 {[%clk 0:00:37.4]} 35. Rf4 {[%clk 0:00:16.1]} 35... Rg3 {[%clk
0:00:33.7]} 36. Bf1 {[%clk 0:00:14.7]} 36... Ne6 {[%clk 0:00:32.7]} 37. Rf3
{[%clk 0:00:14.9]} 37... Rxf3 {[%clk 0:00:32.7]} 38. gxf3 {[%clk 0:00:15.8]}
38... Ng5 {[%clk 0:00:33]} 39. Bg2 {[%clk 0:00:15.8]} 39... Ne6 {[%clk
0:00:33.5]} 40. Na5 {[%clk 0:00:15.7]} 40... Nf4 {[%clk 0:00:33.9]} 41. Rg1
{[%clk 0:00:15.1]} 41... Ne2 {[%clk 0:00:34.3]} 42. Re1 {[%clk 0:00:14.6]} 42...
Nf4 {[%clk 0:00:33.2]} 43. Bf1 {[%clk 0:00:14.8]} 43... Kh6 {[%clk 0:00:30.9]}
44. Nxc6 {[%clk 0:00:15]} 44... Kg5 {[%clk 0:00:31.2]} 45. Ne5 {[%clk
0:00:15.1]} 45... Kh4 {[%clk 0:00:31.6]} 46. Nd3 {[%clk 0:00:11.4]} 46... Nxd3
{[%clk 0:00:30.7]} 47. Bxd3 {[%clk 0:00:12]} 47... Rxd3 {[%clk 0:00:30.8]} 48.
a4 {[%clk 0:00:12.5]} 48... Rxf3 {[%clk 0:00:28.3]} 49. Re7 {[%clk 0:00:09.3]}
49... Kg3 {[%clk 0:00:27]} 50. Kg1 {[%clk 0:00:07.2]} 50... Rb3 {[%clk
0:00:25.9]} 51. Kf1 {[%clk 0:00:02.2]} 51... Kf3 {[%clk 0:00:25]} 0-1

[Event "*** SCC Grand Prix: Titled Tuesday Blitz"]
[Site "Chess.com"]
[Date "2020.09.29"]
[Round "4"]
[White "stefy02"]
[Black "anasta10"]
[Result "0-1"]
[WhiteElo "2262"]
[BlackElo "2505"]
[TimeControl "180+1"]
[EndTime "10:39:25 PDT"]
[Termination "anasta10 won on time"]

1. e4 {[%clk 0:03:00.9]} 1... e6 {[%clk 0:02:57.9]} 2. d4 {[%clk 0:03:00.5]}
2... d5 {[%clk 0:02:57.8]} 3. Nd2 {[%clk 0:03:00.5]} 3... c5 {[%clk 0:02:56.6]}
4. exd5 {[%clk 0:03:00]} 4... exd5 {[%clk 0:02:57.1]} 5. Bb5+ {[%clk 0:02:58.6]}
5... Nc6 {[%clk 0:02:54.3]} 6. Ngf3 {[%clk 0:02:55.4]} 6... Qe7+ {[%clk
0:02:51.5]} 7. Qe2 {[%clk 0:02:42.9]} 7... Qxe2+ {[%clk 0:02:49.6]} 8. Kxe2
{[%clk 0:02:43.2]} 8... Nf6 {[%clk 0:02:49.3]} 9. Re1 {[%clk 0:02:36.3]} 9...
Bd6 {[%clk 0:02:48.4]} 10. Kf1+ {[%clk 0:02:35.2]} 10... Kd8 {[%clk 0:02:39.1]}
11. dxc5 {[%clk 0:02:33.2]} 11... Bxc5 {[%clk 0:02:36.7]} 12. Nb3 {[%clk
0:02:32.7]} 12... Bb6 {[%clk 0:02:35]} 13. Bg5 {[%clk 0:02:30.3]} 13... Be6
{[%clk 0:02:33.5]} 14. Rad1 {[%clk 0:02:25]} 14... Kc7 {[%clk 0:02:27]} 15. Bxf6
{[%clk 0:02:15.5]} 15... gxf6 {[%clk 0:02:25.3]} 16. Nbd4 {[%clk 0:02:12.6]}
16... Rhe8 {[%clk 0:02:18.3]} 17. c3 {[%clk 0:02:01.6]} 17... Rad8 {[%clk
0:02:15.6]} 18. h3 {[%clk 0:01:59.8]} 18... Bc5 {[%clk 0:02:03]} 19. b4 {[%clk
0:01:14.4]} 19... Bf8 {[%clk 0:01:52.3]} 20. Bd3 {[%clk 0:01:04.2]} 20... h6
{[%clk 0:01:42.7]} 21. b5 {[%clk 0:01:00.7]} 21... Na5 {[%clk 0:01:39.9]} 22.
Nxe6+ {[%clk 0:00:37.7]} 22... fxe6 {[%clk 0:01:39.6]} 23. Bg6 {[%clk
0:00:37.6]} 23... Re7 {[%clk 0:01:39.8]} 24. Nd4 {[%clk 0:00:36.2]} 24... e5
{[%clk 0:01:32.4]} 25. Nf5 {[%clk 0:00:36.1]} 25... Red7 {[%clk 0:01:29.3]} 26.
f4 {[%clk 0:00:20.4]} 26... Nc4 {[%clk 0:01:19.2]} 27. fxe5 {[%clk 0:00:19.7]}
27... fxe5 {[%clk 0:01:19.8]} 28. Kg1 {[%clk 0:00:17.5]} 28... Kb6 {[%clk
0:01:10.5]} 29. Rb1 {[%clk 0:00:14.4]} 29... Nd2 {[%clk 0:00:55]} 30. Rb2 {[%clk
0:00:14.2]} 30... Ne4 {[%clk 0:00:54]} 31. Ne3 {[%clk 0:00:12]} 31... Nxc3
{[%clk 0:00:47.2]} 32. Rc1 {[%clk 0:00:11]} 32... d4 {[%clk 0:00:42.1]} 33. Nc4+
{[%clk 0:00:10.5]} 33... Kc7 {[%clk 0:00:37.7]} 34. Nxe5 {[%clk 0:00:11]} 34...
Rg7 {[%clk 0:00:36.1]} 35. Bh5 {[%clk 0:00:09.7]} 35... Rd5 {[%clk 0:00:32.6]}
36. Nf3 {[%clk 0:00:08.9]} 36... Bc5 {[%clk 0:00:18.1]} 37. Bg4 {[%clk
0:00:06.3]} 37... h5 {[%clk 0:00:18.4]} 38. Be6 {[%clk 0:00:06.1]} 38... Rd6
{[%clk 0:00:18.6]} 39. Bc4 {[%clk 0:00:06]} 39... Kb8 {[%clk 0:00:16.7]} 40. Bd3
{[%clk 0:00:05.1]} 40... b6 {[%clk 0:00:16.1]} 41. Re1 {[%clk 0:00:04.8]} 41...
Kc7 {[%clk 0:00:15.4]} 42. Re8 {[%clk 0:00:02.4]} 42... Rdd7 {[%clk 0:00:15.1]}
43. Re6 {[%clk 0:00:01.8]} 43... Rde7 {[%clk 0:00:14.9]} 44. Rxe7+ {[%clk
0:00:02.2]} 44... Rxe7 {[%clk 0:00:14.3]} 45. Rf2 {[%clk 0:00:02.3]} 45... Re3
{[%clk 0:00:14.1]} 46. Bf1 {[%clk 0:00:01.6]} 46... d3 {[%clk 0:00:14.1]} 47.
Rd2 {[%clk 0:00:01.8]} 47... Re2+ {[%clk 0:00:13.7]} 0-1

[Event "*** SCC Grand Prix: Titled Tuesday Blitz"]
[Site "Chess.com"]
[Date "2020.09.29"]
[Round "4"]
[White "lacafi"]
[Black "ClydeHillKid"]
[Result "0-1"]
[WhiteElo "2108"]
[BlackElo "2377"]
[TimeControl "180+1"]
[EndTime "10:39:27 PDT"]
[Termination "ClydeHillKid won on time"]

1. d4 {[%clk 0:03:00.9]} 1... d5 {[%clk 0:02:59.2]} 2. Nf3 {[%clk 0:03:01.1]}
2... Nf6 {[%clk 0:02:58.5]} 3. e3 {[%clk 0:03:00.8]} 3... Bg4 {[%clk 0:02:57.8]}
4. Nbd2 {[%clk 0:03:00.4]} 4... Nbd7 {[%clk 0:02:57.7]} 5. c4 {[%clk 0:03:00.9]}
5... c6 {[%clk 0:02:53.1]} 6. cxd5 {[%clk 0:02:38.3]} 6... cxd5 {[%clk 0:02:54]}
7. Qa4 {[%clk 0:02:37.9]} 7... a6 {[%clk 0:02:45.9]} 8. Ne5 {[%clk 0:02:28.4]}
8... b5 {[%clk 0:02:42.1]} 9. Qb3 {[%clk 0:02:16]} 9... Nxe5 {[%clk 0:02:37.2]}
10. dxe5 {[%clk 0:02:15.7]} 10... Ne4 {[%clk 0:02:36.9]} 11. Nxe4 {[%clk
0:02:10.5]} 11... dxe4 {[%clk 0:02:37.8]} 12. Be2 {[%clk 0:02:08.1]} 12... Bxe2
{[%clk 0:02:28.6]} 13. Kxe2 {[%clk 0:02:09]} 13... e6 {[%clk 0:02:19.4]} 14. Rd1
{[%clk 0:02:02.4]} 14... Qc7 {[%clk 0:02:18.3]} 15. Bd2 {[%clk 0:01:56]} 15...
Qxe5 {[%clk 0:02:10.7]} 16. Rac1 {[%clk 0:01:21.7]} 16... Qh5+ {[%clk
0:02:06.8]} 17. Kf1 {[%clk 0:01:17.1]} 17... Be7 {[%clk 0:02:01.3]} 18. Qc2
{[%clk 0:01:14.4]} 18... O-O {[%clk 0:01:58.1]} 19. Qxe4 {[%clk 0:01:14.5]}
19... Qxh2 {[%clk 0:01:56.6]} 20. Ke2 {[%clk 0:01:11.1]} 20... h6 {[%clk
0:01:42.7]} 21. Rh1 {[%clk 0:00:57.3]} 21... Qd6 {[%clk 0:01:41.5]} 22. a3
{[%clk 0:00:50.2]} 22... a5 {[%clk 0:01:37.6]} 23. Bc3 {[%clk 0:00:49.8]} 23...
b4 {[%clk 0:01:29.7]} 24. axb4 {[%clk 0:00:44.1]} 24... axb4 {[%clk 0:01:30.6]}
25. Be5 {[%clk 0:00:43.5]} 25... Qa6+ {[%clk 0:01:26.1]} 26. Kf3 {[%clk
0:00:34.9]} 26... f5 {[%clk 0:01:03.1]} 27. Qc6 {[%clk 0:00:28.5]} 27... Qa2
{[%clk 0:00:38.8]} 28. Rhd1 {[%clk 0:00:21.3]} 28... Rac8 {[%clk 0:00:27.2]} 29.
Qd7 {[%clk 0:00:20.3]} 29... Rxc1 {[%clk 0:00:21.4]} 30. Rxc1 {[%clk 0:00:20.3]}
30... Qd5+ {[%clk 0:00:19.8]} 31. Qxd5 {[%clk 0:00:20.2]} 31... exd5 {[%clk
0:00:20.7]} 32. Rc7 {[%clk 0:00:15.2]} 32... Bf6 {[%clk 0:00:16.5]} 33. Bxf6
{[%clk 0:00:13.4]} 33... Rxf6 {[%clk 0:00:17.4]} 34. Rd7 {[%clk 0:00:13.7]}
34... Rc6 {[%clk 0:00:15.8]} 35. Rxd5 {[%clk 0:00:13.7]} 35... Rc2 {[%clk
0:00:15.8]} 36. Rxf5 {[%clk 0:00:10.1]} 36... Rxb2 {[%clk 0:00:15.8]} 37. Rb5
{[%clk 0:00:09.8]} 37... Kh7 {[%clk 0:00:14.4]} 38. e4 {[%clk 0:00:09.9]} 38...
Kg6 {[%clk 0:00:13.9]} 39. Ke3 {[%clk 0:00:08.1]} 39... Kf6 {[%clk 0:00:10.3]}
40. g3 {[%clk 0:00:08]} 40... g5 {[%clk 0:00:09.6]} 41. f4 {[%clk 0:00:07.6]}
41... Rb3+ {[%clk 0:00:03.7]} 42. Kd4 {[%clk 0:00:03.3]} 42... Rxg3 {[%clk
0:00:03]} 43. fxg5+ {[%clk 0:00:02.5]} 43... hxg5 {[%clk 0:00:03.3]} 44. Rxb4
{[%clk 0:00:02.3]} 44... Rg1 {[%clk 0:00:03.7]} 45. Rb6+ {[%clk 0:00:01.8]}
45... Ke7 {[%clk 0:00:04.3]} 46. Ke5 {[%clk 0:00:02]} 46... g4 {[%clk
0:00:04.8]} 47. Rb7+ {[%clk 0:00:02.2]} 47... Ke8 {[%clk 0:00:04.8]} 48. Ke6
{[%clk 0:00:02.5]} 48... Kf8 {[%clk 0:00:02.9]} 49. e5 {[%clk 0:00:02.7]} 49...
g3 {[%clk 0:00:02.3]} 50. Rb8+ {[%clk 0:00:01.6]} 50... Kg7 {[%clk 0:00:02.2]}
0-1

[Event "*** SCC Grand Prix: Titled Tuesday Blitz"]
[Site "Chess.com"]
[Date "2020.09.29"]
[Round "4"]
[White "Sankalp_Gupta2003"]
[Black "SabKaD4ddy"]
[Result "0-1"]
[WhiteElo "2753"]
[BlackElo "2539"]
[TimeControl "180+1"]
[EndTime "10:39:30 PDT"]
[Termination "SabKaD4ddy won by resignation"]

1. e4 {[%clk 0:03:00.9]} 1... c5 {[%clk 0:02:59.7]} 2. Nc3 {[%clk 0:03:00.4]}
2... Nc6 {[%clk 0:02:59.5]} 3. Bb5 {[%clk 0:02:59.3]} 3... Nd4 {[%clk
0:02:59.3]} 4. Nf3 {[%clk 0:02:59]} 4... g6 {[%clk 0:02:59.3]} 5. Nxd4 {[%clk
0:02:57.6]} 5... cxd4 {[%clk 0:03:00.2]} 6. Ne2 {[%clk 0:02:58.3]} 6... Bg7
{[%clk 0:03:00.3]} 7. O-O {[%clk 0:02:57]} 7... Nf6 {[%clk 0:03:00.3]} 8. d3
{[%clk 0:02:57.2]} 8... O-O {[%clk 0:03:00.1]} 9. Bc4 {[%clk 0:02:51.2]} 9... d5
{[%clk 0:02:59.8]} 10. exd5 {[%clk 0:02:44.7]} 10... Nxd5 {[%clk 0:03:00.7]} 11.
Nf4 {[%clk 0:02:35.8]} 11... Nb6 {[%clk 0:02:57.6]} 12. Bb3 {[%clk 0:02:35.5]}
12... e5 {[%clk 0:02:55.1]} 13. Ne2 {[%clk 0:02:35.9]} 13... Kh8 {[%clk
0:02:48.8]} 14. f4 {[%clk 0:02:36.3]} 14... exf4 {[%clk 0:02:42.4]} 15. Bxf4
{[%clk 0:02:37.2]} 15... f5 {[%clk 0:02:37.7]} 16. Qd2 {[%clk 0:02:34.6]} 16...
Bd7 {[%clk 0:02:35.2]} 17. Bh6 {[%clk 0:02:32.6]} 17... Bxh6 {[%clk 0:02:30.1]}
18. Qxh6 {[%clk 0:02:33.5]} 18... Qf6 {[%clk 0:02:30.6]} 19. Qf4 {[%clk
0:02:30.9]} 19... Rae8 {[%clk 0:02:15.3]} 20. Rae1 {[%clk 0:02:27.7]} 20... a5
{[%clk 0:01:33.9]} 21. a3 {[%clk 0:02:04.9]} 21... Ba4 {[%clk 0:01:24.1]} 22.
Bxa4 {[%clk 0:01:31.4]} 22... Nxa4 {[%clk 0:01:25]} 23. b3 {[%clk 0:01:31.2]}
23... Nc3 {[%clk 0:01:17.2]} 24. Nxd4 {[%clk 0:01:28.9]} 24... g5 {[%clk
0:01:06.6]} 25. Qf2 {[%clk 0:01:27.1]} 25... f4 {[%clk 0:01:04.8]} 26. Nf3
{[%clk 0:01:18.9]} 26... Nd5 {[%clk 0:01:01.1]} 27. Rxe8 {[%clk 0:00:43]} 27...
Rxe8 {[%clk 0:01:02]} 28. Qc5 {[%clk 0:00:24.1]} 28... Ne3 {[%clk 0:00:58.7]}
29. Re1 {[%clk 0:00:23.8]} 29... g4 {[%clk 0:00:59]} 30. Qd4 {[%clk 0:00:18.1]}
30... Kg7 {[%clk 0:00:41.9]} 31. Qxf6+ {[%clk 0:00:15.5]} 31... Kxf6 {[%clk
0:00:42.8]} 32. Nd2 {[%clk 0:00:14.9]} 32... b5 {[%clk 0:00:34.7]} 33. g3 {[%clk
0:00:07.6]} 33... Rd8 {[%clk 0:00:20.4]} 34. gxf4 {[%clk 0:00:04.2]} 34... Nxc2
{[%clk 0:00:20.3]} 35. Rc1 {[%clk 0:00:04.9]} 35... Nd4 {[%clk 0:00:19.4]} 36.
Kf2 {[%clk 0:00:04]} 36... Kf5 {[%clk 0:00:13.6]} 37. Rc5+ {[%clk 0:00:03.8]}
37... Kxf4 {[%clk 0:00:13.4]} 38. Ne4 {[%clk 0:00:02.3]} 38... Nxb3 {[%clk
0:00:11.8]} 39. Rxb5 {[%clk 0:00:02.8]} 39... Rxd3 {[%clk 0:00:11.7]} 40. Ng3
{[%clk 0:00:03.2]} 40... Rd2+ {[%clk 0:00:11.9]} 41. Ke1 {[%clk 0:00:03.7]}
41... Rb2 {[%clk 0:00:12.2]} 42. Rf5+ {[%clk 0:00:02.3]} 42... Ke3 {[%clk
0:00:11]} 43. Re5+ {[%clk 0:00:03]} 43... Kd3 {[%clk 0:00:11.3]} 44. Kf1 {[%clk
0:00:02.9]} 44... Nd2+ {[%clk 0:00:11.1]} 45. Kg2 {[%clk 0:00:01.4]} 45... Nf3+
{[%clk 0:00:11.5]} 46. Re2 {[%clk 0:00:01.9]} 46... Rxe2+ {[%clk 0:00:11.7]} 47.
Nxe2 {[%clk 0:00:02.8]} 47... Kxe2 {[%clk 0:00:12.6]} 48. Kg3 {[%clk 0:00:03.7]}
48... Nxh2 {[%clk 0:00:13.1]} 49. Kxh2 {[%clk 0:00:04.1]} 49... Kf2 {[%clk
0:00:13.6]} 0-1

[Event "*** SCC Grand Prix: Titled Tuesday Blitz"]
[Site "Chess.com"]
[Date "2020.09.29"]
[Round "4"]
[White "elohunter1999"]
[Black "Lagmantr"]
[Result "1-0"]
[WhiteElo "2473"]
[BlackElo "2640"]
[TimeControl "180+1"]
[EndTime "10:39:30 PDT"]
[Termination "elohunter1999 won by checkmate"]

1. e4 {[%clk 0:03:00.9]} 1... c6 {[%clk 0:02:59.8]} 2. Nc3 {[%clk 0:03:00]} 2...
d5 {[%clk 0:03:00.3]} 3. Nf3 {[%clk 0:02:59.8]} 3... dxe4 {[%clk 0:03:00.5]} 4.
Nxe4 {[%clk 0:02:59.5]} 4... Nf6 {[%clk 0:03:01]} 5. Qe2 {[%clk 0:02:59.2]} 5...
Nxe4 {[%clk 0:03:01.1]} 6. Qxe4 {[%clk 0:03:00.1]} 6... Qd5 {[%clk 0:03:01.5]}
7. Qh4 {[%clk 0:02:51.3]} 7... Qe6+ {[%clk 0:03:01.1]} 8. Be2 {[%clk 0:02:50.6]}
8... Qg6 {[%clk 0:03:01.5]} 9. O-O {[%clk 0:02:31.6]} 9... Qxc2 {[%clk
0:03:00.9]} 10. Bc4 {[%clk 0:02:27.2]} 10... Qf5 {[%clk 0:02:54.4]} 11. Re1
{[%clk 0:02:24.8]} 11... e6 {[%clk 0:02:38.6]} 12. Qg3 {[%clk 0:02:24]} 12...
Nd7 {[%clk 0:02:19.5]} 13. d4 {[%clk 0:02:23.9]} 13... Nb6 {[%clk 0:02:18]} 14.
Bb3 {[%clk 0:02:19.4]} 14... Qg6 {[%clk 0:02:15.8]} 15. Qc7 {[%clk 0:01:47.2]}
15... Be7 {[%clk 0:02:14.4]} 16. Ne5 {[%clk 0:01:31]} 16... Qf6 {[%clk
0:02:11.9]} 17. Ng4 {[%clk 0:01:18.3]} 17... Qxd4 {[%clk 0:02:06.7]} 18. Qg3
{[%clk 0:01:08.1]} 18... h5 {[%clk 0:01:29.1]} 19. Ne5 {[%clk 0:01:03.9]} 19...
Bf6 {[%clk 0:01:28.9]} 20. Bg5 {[%clk 0:00:51.9]} 20... h4 {[%clk 0:01:23.4]}
21. Qf3 {[%clk 0:00:42.4]} 21... Nd5 {[%clk 0:00:59.4]} 22. Rad1 {[%clk
0:00:40.5]} 22... Qb6 {[%clk 0:00:57.8]} 23. Bxd5 {[%clk 0:00:39.7]} 23... cxd5
{[%clk 0:00:53.7]} 24. Bxf6 {[%clk 0:00:39.2]} 24... gxf6 {[%clk 0:00:47.8]} 25.
Qxf6 {[%clk 0:00:39.3]} 25... Rf8 {[%clk 0:00:47.7]} 26. Rxd5 {[%clk 0:00:33.7]}
26... Qc7 {[%clk 0:00:28]} 27. h3 {[%clk 0:00:18.5]} 27... Qe7 {[%clk
0:00:08.2]} 28. Qxe7+ {[%clk 0:00:09.7]} 28... Kxe7 {[%clk 0:00:09.1]} 29. Rd4
{[%clk 0:00:09.8]} 29... Rh8 {[%clk 0:00:08.6]} 30. Red1 {[%clk 0:00:09.8]}
30... f6 {[%clk 0:00:07]} 31. Ng6+ {[%clk 0:00:09.5]} 31... Kf7 {[%clk
0:00:07.4]} 32. Nxh8+ {[%clk 0:00:10.4]} 32... Kg7 {[%clk 0:00:08.3]} 33. Rd8
{[%clk 0:00:10.4]} 33... e5 {[%clk 0:00:07.8]} 34. f4 {[%clk 0:00:08.5]} 34...
exf4 {[%clk 0:00:07.4]} 35. Kf2 {[%clk 0:00:08.9]} 35... b6 {[%clk 0:00:08.3]}
36. Kf3 {[%clk 0:00:07.1]} 36... Bb7+ {[%clk 0:00:08.2]} 37. Kxf4 {[%clk
0:00:07.6]} 37... Rxd8 {[%clk 0:00:09.1]} 38. Rxd8 {[%clk 0:00:07.4]} 38... Bxg2
{[%clk 0:00:10]} 39. Kg4 {[%clk 0:00:07.2]} 39... Be4 {[%clk 0:00:08.9]} 40.
Kxh4 {[%clk 0:00:07.4]} 40... Bb1 {[%clk 0:00:08.9]} 41. a3 {[%clk 0:00:07.1]}
41... a5 {[%clk 0:00:09.3]} 42. Kg3 {[%clk 0:00:07.5]} 42... b5 {[%clk
0:00:09.5]} 43. Kf4 {[%clk 0:00:08.1]} 43... b4 {[%clk 0:00:09.4]} 44. axb4
{[%clk 0:00:09]} 44... axb4 {[%clk 0:00:10]} 45. h4 {[%clk 0:00:09.9]} 45... Ba2
{[%clk 0:00:10.1]} 46. h5 {[%clk 0:00:09.9]} 46... Bc4 {[%clk 0:00:10.5]} 47.
Ng6 {[%clk 0:00:10]} 47... Bf7 {[%clk 0:00:09.7]} 48. Rd7 {[%clk 0:00:09.8]}
48... b3 {[%clk 0:00:10.1]} 49. Kf5 {[%clk 0:00:09.6]} 49... Kg8 {[%clk
0:00:07.7]} 50. Kxf6 {[%clk 0:00:09.6]} 50... Bc4 {[%clk 0:00:07.5]} 51. Rd8+
{[%clk 0:00:09.5]} 51... Kh7 {[%clk 0:00:08.4]} 52. Rh8# {[%clk 0:00:10.1]} 1-0

[Event "*** SCC Grand Prix: Titled Tuesday Blitz"]
[Site "Chess.com"]
[Date "2020.09.29"]
[Round "4"]
[White "zmeeed67"]
[Black "Vesper2018"]
[Result "0-1"]
[WhiteElo "2373"]
[BlackElo "2608"]
[TimeControl "180+1"]
[EndTime "10:39:31 PDT"]
[Termination "Vesper2018 won on time"]

1. e4 {[%clk 0:03:00.9]} 1... c5 {[%clk 0:02:59.5]} 2. g3 {[%clk 0:03:00.6]}
2... Nc6 {[%clk 0:02:57.1]} 3. Bg2 {[%clk 0:03:00.6]} 3... g6 {[%clk 0:02:57.6]}
4. Ne2 {[%clk 0:03:00.7]} 4... Bg7 {[%clk 0:02:58.2]} 5. O-O {[%clk 0:03:01.1]}
5... e5 {[%clk 0:02:53.8]} 6. Nbc3 {[%clk 0:03:01.1]} 6... Nge7 {[%clk
0:02:53.7]} 7. a3 {[%clk 0:02:59.4]} 7... d6 {[%clk 0:02:52.3]} 8. Rb1 {[%clk
0:02:58.9]} 8... O-O {[%clk 0:02:47.3]} 9. b4 {[%clk 0:02:57]} 9... Be6 {[%clk
0:02:44.8]} 10. d3 {[%clk 0:02:55.7]} 10... b6 {[%clk 0:02:42.1]} 11. f4 {[%clk
0:02:52.9]} 11... Qd7 {[%clk 0:02:37.1]} 12. Nd5 {[%clk 0:02:50.6]} 12... Bxd5
{[%clk 0:02:18.1]} 13. exd5 {[%clk 0:02:49.3]} 13... Nd4 {[%clk 0:02:18.7]} 14.
c4 {[%clk 0:02:34.9]} 14... Rac8 {[%clk 0:02:06.4]} 15. b5 {[%clk 0:02:26.5]}
15... Nxe2+ {[%clk 0:01:56.2]} 16. Qxe2 {[%clk 0:02:26.1]} 16... Nf5 {[%clk
0:01:56.4]} 17. Bb2 {[%clk 0:02:18]} 17... Nd4 {[%clk 0:01:56.1]} 18. Bxd4
{[%clk 0:02:16.8]} 18... exd4 {[%clk 0:01:56.2]} 19. Rbe1 {[%clk 0:02:15.7]}
19... Rce8 {[%clk 0:01:55.5]} 20. Qd2 {[%clk 0:02:08.3]} 20... Re3 {[%clk
0:01:55.4]} 21. f5 {[%clk 0:01:55.4]} 21... Bh6 {[%clk 0:01:52.1]} 22. Qd1
{[%clk 0:01:43.8]} 22... Rfe8 {[%clk 0:01:48.8]} 23. Be4 {[%clk 0:01:32.8]}
23... Qe7 {[%clk 0:01:43]} 24. Rxe3 {[%clk 0:01:28.8]} 24... dxe3 {[%clk
0:01:38.2]} 25. Kg2 {[%clk 0:01:20.2]} 25... Qe5 {[%clk 0:01:32]} 26. Qe2 {[%clk
0:01:18.8]} 26... Qc3 {[%clk 0:01:22.5]} 27. h4 {[%clk 0:01:13.7]} 27... Qd2
{[%clk 0:01:10.7]} 28. Re1 {[%clk 0:00:50.7]} 28... Re5 {[%clk 0:01:07.7]} 29.
fxg6 {[%clk 0:00:47.5]} 29... hxg6 {[%clk 0:01:03.4]} 30. g4 {[%clk 0:00:34.9]}
30... f5 {[%clk 0:00:58.2]} 31. Bf3 {[%clk 0:00:34.7]} 31... Bf4 {[%clk
0:00:48.5]} 32. h5 {[%clk 0:00:29.5]} 32... fxg4 {[%clk 0:00:46.1]} 33. Bxg4
{[%clk 0:00:27.3]} 33... gxh5 {[%clk 0:00:46.3]} 34. Bf3 {[%clk 0:00:24.6]}
34... Rg5+ {[%clk 0:00:44.9]} 35. Kh1 {[%clk 0:00:24.2]} 35... h4 {[%clk
0:00:35.3]} 36. Rg1 {[%clk 0:00:17.6]} 36... Bg3 {[%clk 0:00:24.8]} 37. Rg2
{[%clk 0:00:12.8]} 37... Qxe2 {[%clk 0:00:18.1]} 38. Bxe2 {[%clk 0:00:12.3]}
38... Kg7 {[%clk 0:00:17]} 39. Rg1 {[%clk 0:00:11.6]} 39... Kf6 {[%clk 0:00:17]}
40. Rf1+ {[%clk 0:00:11.7]} 40... Bf2 {[%clk 0:00:16.8]} 41. Rd1 {[%clk
0:00:10]} 41... Ke5 {[%clk 0:00:16.9]} 42. Ra1 {[%clk 0:00:08.4]} 42... Kd4
{[%clk 0:00:17]} 43. a4 {[%clk 0:00:08.8]} 43... Kc3 {[%clk 0:00:16.2]} 44. Ra2
{[%clk 0:00:09.2]} 44... Rg1+ {[%clk 0:00:10]} 45. Kh2 {[%clk 0:00:09.1]} 45...
Re1 {[%clk 0:00:10.5]} 46. Kg2 {[%clk 0:00:06.9]} 46... Kb3 {[%clk 0:00:09.6]}
0-1